[Event "Teplice Open 2022"]
[Site "Teplice"]
[Date "2022.06.23"]
[Round "6.17"]
[White "Seo, Jung Min"]
[Black "Mica, Marek"]
[Result "1-0"]
[ECO "D36"]
[WhiteElo "2483"]
[BlackElo "2346"]
[Annotator "TA"]
[PlyCount "99"]
[EventDate "2022.06.18"]
[EventType "swiss"]
[EventCountry "CZE"]
[SourceTitle "playchess.com"]
[Source "ChessBase"]
[SourceQuality "1"]
[TimeControl "40/5400+30:1800+30"]

{[%evp 23,99,31,30,24,18,20,26,27,48,47,45,27,22,25,27,16,20,14,12,12,14,0,0,0,7,0,26,26,26,26,26,25,32,28,62,52,60,53,53,45,99,0,0,0,0,0,0,0,53,58,52,62,175,185,173,172,150,166,254,248,283,281,439,438,435,432,440,192,1821,1648,5677,5351,29967,29967,29964,29965,29987,6503]} 1. c4 {[%emt 0:00:01]} e6 {[%emt 0:00:29]} 2. Nc3 {[%emt 0:00:04]} d5 {[%emt 0:00:22]} 3. d4 {[%emt 0:00:06]} Nf6 {[%emt 0:00:13]} 4. cxd5 {[%emt 0:00:13]} exd5 {[%emt 0:02:05]} 5. Bg5 {[%emt 0:00:36]} c6 {[%emt 0:00:39]} 6. e3 {[%emt 0:00:17]} Nbd7 {[%emt 0:03:18]} 7. Bd3 {[%emt 0:02:03]} Be7 {[%emt 0:00:14]} 8. Qc2 {[%emt 0:01:21]} h6 {[%emt 0:05:11]} 9. Bh4 {[%emt 0:00:18]} O-O {[%emt 0:01:20]} 10. Nf3 {[%emt 0:02:11]} Re8 {[%emt 0:01:05]} 11. O-O {[%emt 0:00:36]} Nh5 {[%emt 0:02:43]} 12. Bxe7 {[%emt 0:01:26]} Qxe7 {[%emt 0:00:13]} 13. Rfe1 {[%emt 0:02:08] D36: Queen's Gambit Declined: Exchange Variation: Main line (5 Bg5 c6 6 Qc2).} Nhf6 {[%emt 0:01:22]} 14. Rab1 {[%emt 0:01:29]} a5 {[%emt 0:06:11]} 15. a3 {[%emt 0:02:10] White has an edge.} Qd6 {[%emt 0:03:02] [#]} 16. h3 $146 {[%emt 0:02:56]} ({Predecessor:} 16. b4 axb4 17. axb4 b5 18. e4 dxe4 19. Nxe4 Nxe4 20. Bxe4 Nf6 21. Qxc6 Qxc6 22. Bxc6 Rxe1+ 23. Rxe1 {0-1 (59) Odabasi,N (1536)-Subasi,Z (1723) Manavgat 2016}) 16... b6 {[%emt 0:18:16]} 17. b4 {[%emt 0:06:09]} axb4 {[%emt 0:00:34]} 18. axb4 {[%emt 0:00:01]} Bb7 {[%emt 0:02:56]} 19. Rec1 {[%emt 0:02:16]} b5 {[%emt 0:05:36]} 20. Ne2 {[%emt 0:02:25]} Ra4 {[%emt 0:02:12]} 21. Qc3 {[%emt 0:02:40]} Rea8 {[%emt 0:02:23]} 22. Ng3 {[%emt 0:02:13]} Ra3 {[%emt 0:01:42]} 23. Qc2 {[%emt 0:03:20]} Ra2 {[%emt 0:00:47]} 24. Rb2 {[%emt 0:01:36]} Rxb2 {[%emt 0:01:43]} 25. Qxb2 {[%emt 0:00:01]} Nb6 {[%emt 0:02:52]} 26. Ra1 {[%emt 0:01:52]} Rxa1+ {[%emt 0:11:18]} 27. Qxa1 {[%emt 0:00:00]} Na4 {[%emt 0:00:10]} 28. Qa3 {[%emt 0:01:57]} Nd7 {[%emt 0:01:22]} 29. e4 {[%emt 0:03:17]} dxe4 $1 {[%emt 0:00:57]} 30. Nxe4 {[%emt 0:00:10]} Qe7 {[%emt 0:04:32]} 31. Nc5 {[%emt 0:08:47]} Ndb6 {[%emt 0:04:07]} (31... Naxc5 $14 32. bxc5 Nf6) 32. Nxb7 {[%emt 0:20:02]} (32. Ne5 $16) 32... Qxb7 $11 {[%emt 0:00:17]} 33. Ne5 {[%emt 0:03:20]} Nd5 {[%emt 0:01:30]} 34. Be4 {[%emt 0:00:19]} Nac3 {[%emt 0:01:12] Pair of Knights!} 35. Bf3 {[%emt 0:00:49]} Kh7 {[%emt 0:08:25]} (35... f6 $11 36. Ng6 Qb8) 36. Qc1 {[%emt 0:04:18]} g6 {[%emt 0:00:57]} 37. Qc2 {[%emt 0:00:24] Inhibits Na2.} Qe7 {[%emt 0:03:41]} ({Black should try} 37... Qa7 $14) 38. Bxd5 $18 {[%emt 0:05:58]} ({Stronger than} 38. Nxc6 Qe1+ 39. Kh2 Nf4 $11) 38... Nxd5 {[%emt 0:00:05]} 39. Qxc6 {[%emt 0:00:04]} Nxb4 {[%emt 0:00:09]} 40. Qxb5 {[%emt 0:00:03][%cal Oe5f7][%mdl 4096] Endgame KQN-KQN. White is more active.} f6 {[%emt 0:00:40] [#]} (40... Kg7 $142 41. Qc4 f6) 41. Ng4 $1 {[%emt 0:34:05]} Kg7 {[%emt 0:04:35]} 42. Ne3 {[%emt 0:00:00]} f5 {[%emt 0:01:43]} (42... h5 {was worth a try.} 43. d5 Qd6) 43. g3 {[%emt 0:00:00]} h5 {[%emt 0:01:48]} 44. h4 {[%emt 0:00:00]} Kh7 {[%emt 0:02:24]} 45. Kf1 {[%emt 0:00:00]} (45. d5 $142) 45... Qd6 {[%emt 0:02:14] [#] Against Qb6} (45... Kg7 46. Kg1 Kh7) 46. Nc4 {[%emt 0:00:00]} Qxd4 {[%emt 0:13:34]} 47. Qxb4 {[%emt 0:00:00]} f4 {[%emt 0:00:07]} 48. Qe7+ {[%emt 0:00:00] White mates.} Kg8 {[%emt 0:00:08]} 49. Qe6+ {[%emt 0:00:00]} Kf8 {[%emt 0:00:31]} 50. Qd6+ {[%emt 0:00:00] Weighted Error Value: White=0.11 (very precise) /Black=0.41} (50. Ne5 $142 Qa1+ 51. Kg2 f3+ 52. Kh2 Qxe5 53. Qxe5 Kf7 54. g4 Kf8 55. Qc7) 1-0

[Event "Teplice Open 2022"]
[Site "Teplice"]
[Date "2022.06.23"]
[Round "6.19"]
[White "Eidelman, Gabriel"]
[Black "Vlasak, Lukas"]
[Result "0-1"]
[ECO "D30"]
[WhiteElo "2122"]
[BlackElo "2437"]
[Annotator "TA"]
[PlyCount "74"]
[EventDate "2022.06.18"]
[EventType "swiss"]
[EventCountry "CZE"]
[SourceTitle "playchess.com"]
[Source "ChessBase"]
[SourceQuality "1"]
[TimeControl "40/5400+30:1800+30"]

{[%evp 9,74,20,37,23,31,31,47,27,29,19,16,10,14,10,10,7,12,11,18,19,14,19,17,10,28,-70,-65,-85,-85,-85,0,-21,-12,-17,-20,-14,11,20,13,-52,-44,-81,-14,-15,-14,-47,-25,-45,-39,-45,-31,-341,-339,-525,-512,-769,-769,-1286,-769,-756,-753,-738,-717,-1347,-1300,-1079,-987]} 1. d4 {[%emt 0:00:11]} d5 {[%emt 0:00:37]} 2. c4 {[%emt 0:00:24]} c6 {[%emt 0:00:04]} 3. Nf3 {[%emt 0:00:11]} Nf6 {[%emt 0:00:07]} 4. e3 {[%emt 0:00:09]} e6 {[%emt 0:02:02]} 5. b3 {[%emt 0:00:32]} Ne4 {[%emt 0:02:24]} 6. Bd3 {[%emt 0:01:05] D30: Queen's Gambit Declined: Systems without Nc3.} Bb4+ {[%emt 0:01:21] 6...Bd6 is not played anymore.} 7. Nbd2 {[%emt 0:00:27]} f5 {[%emt 0:02:04]} 8. O-O {[%emt 0:01:23] White is slightly better.} (8. Ne5 $5 {[%cal Rd3e4]} O-O 9. O-O $14) 8... Nd7 {[%emt 0:02:34]} 9. Qc2 {[%emt 0:05:16]} O-O {[%emt 0:06:29]} 10. a3 {[%emt 0:22:05]} Bd6 {[%emt 0:00:14]} 11. Bb2 {[%emt 0:01:08]} Qf6 {[%emt 0:01:40] [#]} 12. g3 $146 {[%emt 0:16:33]} ({Predecessor:} 12. b4 g5 13. g3 g4 14. Nh4 Qh6 15. b5 Be7 16. Ng2 Ndf6 17. bxc6 bxc6 18. cxd5 cxd5 19. Nxe4 Nxe4 20. Bxe4 fxe4 {1-0 (52) Carrasco Miranda,A (2285)-Ljukin,S (2362) Chess.com INT 2021}) 12... Qh6 {[%emt 0:09:54]} 13. Ne5 {[%emt 0:05:51]} Ndf6 {[%emt 0:04:20]} 14. Ndf3 {[%emt 0:06:46]} Bd7 {[%emt 0:14:04]} 15. Nxd7 {[%emt 0:04:05]} Nxd7 {[%emt 0:00:09]} 16. Ne5 {[%emt 0:00:43]} Rad8 {[%emt 0:05:01]} 17. b4 {[%emt 0:05:06]} (17. Rad1 $11) 17... Ndf6 $1 $15 {[%emt 0:08:13][%cal Bd7f6,Bf6e4,Be4g5,Bg5f7,Bf7h6,Bh6f5,Bf5g3][%mdl 32] And now ...Bxe5 would win.} 18. Bc1 {[%emt 0:14:26]} Bxe5 {[%emt 0:11:47]} 19. dxe5 {[%emt 0:00:08]} dxc4 {[%emt 0:00:07] 0x0.001e68307de1dp-1022s more active pieces. The white rooks are badly placed.} (19... Ng4 $17 {[%csl Gg4][%cal Rh6h2]} 20. f3 Nxe5 $1) 20. Bxe4 {[%emt 0:00:18]} (20. Bxc4 $2 Ng4 21. h4 (21. f3 $2 Rd2 $19) 21... g5 $19) 20... Nxe4 {[%emt 0:00:07]} 21. f3 {[%emt 0:01:56]} Ng5 {[%emt 0:00:13] ...Qh5 is the strong threat.} 22. Qxc4 {[%emt 0:02:33]} Nf7 {[%emt 0:05:03]} 23. f4 {[%emt 0:00:47]} Rd5 {[%emt 0:00:54]} 24. e4 {[%emt 0:01:34]} (24. Rf2 $11) 24... fxe4 {[%emt 0:00:27]} 25. Qxe4 {[%emt 0:00:27] [#]} Qh5 {[%emt 0:00:40] Inhibits Qe2.} (25... Nxe5 $1 $17 26. Re1 (26. fxe5 Rxf1+ 27. Kxf1 Qh3+ 28. Ke1 Qxh2 $19) (26. Be3 Ng4) 26... Ng4) 26. Be3 $11 {[%emt 0:00:36]} a6 {[%emt 0:02:43]} 27. Kg2 {[%emt 0:02:17]} Nh6 {[%emt 0:02:45]} 28. h3 {[%emt 0:00:14] Against Ng4} Nf5 {[%emt 0:00:50] Strongly threatening ...Qg6.} 29. g4 {[%emt 0:03:08]} Qg6 $36 {[%emt 0:00:06][%mdl 2048] Threatens to win with ...Nh4+. Black fights for an advantage.} 30. Kh2 $2 {[%emt 0:00:57][%mdl 8192] Loses the game.} ({White has to play} 30. Kf2 $15 Nxe3 31. Qxg6 hxg6 32. Kxe3) 30... Ng3 $1 $19 {[%emt 0:01:07]} 31. f5 {[%emt 0:00:56]} (31. Qc4 $142 Nxf1+ 32. Rxf1) 31... exf5 {[%emt 0:02:18] Black is clearly winning.} ({Inferior is} 31... Nxe4 32. fxg6 hxg6 33. Rxf8+ Kxf8 34. Re1 $17) 32. gxf5 {[%emt 0:00:19]} (32. Qf4 $142 Nxf1+ 33. Rxf1) 32... Rxf5 {[%emt 0:00:15]} ({And not} 32... Nxe4 33. fxg6 hxg6 34. Rxf8+ Kxf8 35. Rg1 $17) ({But not} 32... Nxf5 $2 33. Qf4 $19) 33. Qc4 {[%emt 0:02:27]} Nxf1+ {[%emt 0:00:51]} 34. Rxf1 {[%emt 0:00:08]} Rxf1 {[%emt 0:00:13]} 35. Qxf1 {[%emt 0:00:08]} Qe4 {[%emt 0:00:22]} 36. Bc5 {[%emt 0:00:32]} Qxe5+ {[%emt 0:00:45]} 37. Kg1 {[%emt 0:00:08]} h6 {[%emt 0:00:10] Weighted Error Value: White=0.70/Black=0.30} 0-1